bitfinex/quotes_ETHUSD_20251130
["timestamp","ask_amount","ask_price","bid_price","bid_amount"]
[1764536363297,1.1284,3031.9,3031.8,8.0778107]
[1764536364471,1.1284,3031.9,3031.8,4.63746871]
[1764536364977,1.1284,3031.9,3031.8,3.5063706]
[1764536369111,1.1284,3031.9,3031.6,3.2985882]
[1764536369276,0.1956,3031.9,3031.8,0.208]
[1764536369478,0.1956,3031.9,3031.8,3.5063706]
[1764536369710,0.6458,3031.9,3031.8,0.208]
[1764536369875,1.1342,3031.9,3031.8,0.208]
[1764536370477,1.57743984,3031.9,3031.8,0.208]
[1764536373128,1.1342,3031.9,3031.8,0.208]
[1764536377514,4.43246181,3031.9,3031.8,0.208]
[1764536377717,1.1342,3031.9,3031.8,0.208]
[1764536381506,1.1342,3031.9,3031.8,0.19684]
[1764536387512,5.1378197,3031.9,3031.8,0.19684]
[1764536387712,5.98141728,3031.9,3031.8,0.19684]
[1764536395431,5.98251762,3031.9,3031.8,0.19684]
[1764536400403,9.28077943,3031.9,3031.5,0.001]
[1764536400639,0.4279,3031.6,3031.5,0.209]
[1764536400938,1.13435823,3031.6,3031.5,0.001]
[1764536401104,1.85926133,3031.6,3031.5,0.001]
[1764536401304,5.36684953,3031.6,3031.5,0.001]
[1764536401504,9.68833835,3031.6,3031.5,0.001]
[1764536401737,10.70486197,3031.6,3031.5,0.001]
[1764536402334,7.26644594,3031.6,3031.5,0.001]
[1764536402536,1.81895823,3031.6,3031.5,0.001]
[1764536402737,1.13435823,3031.6,3031.5,0.001]
[1764536402934,0.4279,3031.6,3031.5,0.001]
[1764536403441,0.91445823,3031.7,3031.5,0.395]
[1764536403643,0.91445823,3031.7,3031.5,0.001]
[1764536403644,0.466,3031.6,3031.5,0.001]
[1764536404327,0.9416,3031.6,3031.5,0.001]
[1764536404523,1.64805823,3031.6,3031.5,0.001]
[1764536404930,1.83366405,3031.6,3031.5,0.001]
[1764536405744,5.13225225,3031.6,3031.5,0.001]
[1764536407416,4.65665225,3031.6,3031.5,0.001]
[1764536407738,5.13225225,3031.6,3031.5,0.001]
[1764536409019,1.83366405,3031.6,3031.5,0.001]
[1764536409420,5.13225225,3031.6,3031.5,0.001]
[1764536412011,5.34125225,3031.6,3031.5,0.001]
[1764536414554,2.04266405,3031.6,3031.5,0.001]
[1764536414958,5.34125225,3031.6,3031.5,0.001]
[1764536418731,2.04266405,3031.6,3031.5,0.001]
[1764536419138,5.34125225,3031.6,3031.5,0.001]
[1764536419338,1.56706405,3031.6,3031.5,0.001]
[1764536419560,0.209,3031.6,3031.5,0.395]
[1764536419968,0.91545823,3031.6,3031.5,0.001]
[1764536420128,0.209,3031.6,3031.5,0.001]
[1764536420330,0.70645823,3031.6,3031.5,0.395]
[1764536420540,0.99087895,3031.7,3031.5,0.395]
[1764536420752,1.17245823,3031.6,3031.5,0.001]
[1764536421967,2.24179066,3031.6,3031.5,0.001]
[1764536423062,2.45079066,3031.6,3031.5,0.001]
[1764536424665,5.74937886,3031.6,3031.5,0.001]
[1764536426436,9.19132539,3031.6,3031.5,0.001]
[1764536426745,10.07436111,3031.6,3031.5,0.001]
[1764536429756,6.63241458,3031.6,3031.5,0.001]
[1764536432163,6.62701458,3031.6,3031.5,0.001]
[1764536433077,2.39222638,3031.6,3031.5,0.395]
[1764536433280,10.06896111,3031.6,3031.5,0.001]
[1764536433466,9.18592539,3031.6,3031.5,0.001]
[1764536434151,10.07011507,3031.6,3031.5,0.001]
[1764536434553,9.18592539,3031.6,3031.5,0.001]
[1764536435583,5.74397886,3031.6,3031.5,0.001]
[1764536436964,6.62811952,3031.6,3031.5,0.001]
[1764536444008,5.74397886,3031.6,3031.5,0.001]
[1764536446331,4.80777886,3031.6,3031.5,0.001]
[1764536446778,5.27377886,3031.6,3031.5,0.001]
[1764536446979,5.74397886,3031.6,3031.5,0.001]
[1764536449100,4.80777886,3031.6,3031.5,0.001]
[1764536449501,5.27377886,3031.6,3031.5,0.001]
[1764536451115,4.80777886,3031.6,3031.5,0.001]
[1764536451607,4.80777886,3031.6,3031.5,0.395]
[1764536453113,4.80777886,3031.6,3031.5,0.001]
[1764536456896,4.80777886,3031.6,3031.2,0.38815274]
[1764536457214,2.5191513,3031.5,3031.2,0.38815274]
[1764536457405,0.70645823,3031.4,3031.2,0.38815274]
[1764536457713,0.70645823,3031.3,3031.2,0.38815274]
[1764536460097,0.70645823,3031.3,3031.2,0.77625274]
[1764536461691,0.002,3031.8,3031.2,7.51717001]
[1764536461692,0.8866668,3031.8,3031.2,7.51717001]
[1764536461884,0.70783288,3031.7,3031.1,0.001]
[1764536462100,0.70783288,3031.6,3031.2,0.208]
[1764536462300,0.70783288,3031.5,3031.2,0.208]
[1764536462508,3.78019893,3031.7,3031.2,0.208]
[1764536462709,0.4923,3031.3,3031.1,0.001]
[1764536463015,4.63111816,3031.6,3031.1,0.001]
[1764536463016,0.70747163,3031.5,3031.1,0.209]
[1764536463220,0.70747163,3031.4,3031.1,0.209]
[1764536463418,0.70747163,3031.3,3031.1,0.5971]
[1764536463588,0.70747163,3031.2,3031.1,0.5971]
[1764536463914,0.70747163,3031.5,3031.1,0.5971]
[1764536464122,0.70747163,3031.4,3031.1,0.9852]
[1764536464290,0.70747163,3031.3,3031.1,0.9852]
[1764536464489,4.18334533,3031.6,3031.1,0.9852]
[1764536464689,0.70739942,3031.5,3031.1,0.9852]
[1764536464921,0.70739942,3031.4,3031.1,0.9852]
[1764536465220,0.70739942,3031.3,3031.1,0.9852]
[1764536465515,5.17882549,3031.6,3031.1,0.9852]
[1764536465721,0.70740951,3031.5,3031.2,0.3881]
[1764536465921,0.70740951,3031.4,3031.2,0.3881]
[1764536466220,0.70740951,3031.3,3031.2,0.3881]
[1764536466920,0.70740951,3031.3,3031.1,0.209]
[1764536467095,0.70740951,3031.2,3031.1,0.209]
[1764536467823,0.4923,3031.2,3031.1,0.209]
[1764536467999,1.19970951,3031.2,3031.1,0.209]
[1764536468191,0.70740951,3031.2,3031.1,0.209]
[1764536468392,0.70740951,3031.3,3031.1,0.9852]
[1764536468591,0.70740951,3031.2,3031.1,0.5971]
[1764536468854,4.00610812,3031.5,3031.1,0.209]
[1764536469028,0.4923,3031.2,3031.1,0.209]
[1764536469395,1.19970951,3031.2,3031.1,0.209]
[1764536469722,0.8846668,3031.7,3031.1,4.28430196]
[1764536469931,0.70744675,3031.6,3031.3,0.3881]
[1764536470142,0.70744675,3031.5,3031.3,0.3881]
[1764536470324,0.8866668,3031.8,3031.3,0.3881]
[1764536470498,0.70742714,3031.7,3031.4,0.3881]
[1764536470696,0.70742714,3031.6,3031.5,0.208]
[1764536471101,0.70742714,3031.6,3031.5,0.5961]
[1764536471300,0.70742714,3031.7,3031.5,0.5961]
[1764536471501,0.70742714,3031.6,3031.5,0.208]
[1764536471701,0.70742714,3031.7,3031.5,3.50669701]
[1764536471917,0.70742714,3031.6,3031.5,3.50669701]
[1764536472121,0.70742714,3031.7,3031.6,0.3881]
[1764536472320,0.70742714,3031.7,3031.5,0.9842]
[1764536472630,0.70742714,3031.6,3031.5,0.5961]
[1764536472833,0.70742714,3031.7,3031.5,0.5961]
[1764536473031,0.70742714,3031.6,3031.5,3.89479701]
[1764536473331,0.70942714,3031.8,3031.7,0.3881]
[1764536475223,0.4943,3031.8,3031.5,0.208]
[1764536476025,0.4943,3031.8,3031.5,3.50669658]
[1764536476026,0.002,3031.8,3031.5,3.50669658]
[1764536476225,0.002,3031.6,3031.5,0.208]
[1764536476626,0.002,3031.6,3031.5,4.63358788]
[1764536476831,0.002,3031.6,3031.5,5.35918199]
[1764536485816,0.002,3031.6,3031.5,4.97108199]
[1764536486020,0.002,3031.6,3031.5,4.62039112]
[1764536486543,0.9412,3031.6,3031.5,0.208]
[1764536487044,0.9412,3031.6,3031.1,0.001]
[1764536487343,0.4704,3031.2,3031.1,0.001]
[1764536487754,0.9392,3031.2,3031.1,0.001]
[1764536489656,0.70548584,3031.5,3031.1,0.3891]
[1764536489955,0.002,3031.6,3031.4,0.3881]
[1764536490151,0.002,3031.6,3031.4,0.5961]
[1764536492646,0.002,3031.6,3031.5,3.68679701]
[1764536492954,0.002,3031.6,3031.5,4.07489701]
[1764536493154,0.002,3031.6,3031.5,4.83307556]
[1764536493338,0.002,3031.6,3031.5,4.44497556]
[1764536493661,0.002,3031.6,3031.5,3.68679701]
[1764536503563,0.4837,3031.6,3031.4,3.50676512]
[1764536504241,0.967,3031.6,3031.4,3.50676512]
[1764536505170,0.9016,3031.5,3031.1,0.72659411]
[1764536505347,0.4189,3031.2,3031.1,0.001]
[1764536505671,0.4189,3031.2,3031.1,0.209]
[1764536507246,0.4833,3031.4,3031.1,0.209]
[1764536508073,0.4817,3031.2,3031.1,0.209]
[1764536508579,0.965,3031.2,3031.1,0.209]
[1764536509056,0.965,3031.2,3031.1,3.50813232]
[1764536510342,0.002,3031.6,3031.1,3.50813232]
[1764536510343,0.002,3031.6,3031.1,8.60190546]
[1764536510543,0.002,3031.6,3031.2,1.11369411]
[1764536511057,0.002,3031.6,3031.2,1.14668434]
[1764536511258,0.002,3031.6,3031.2,1.11369411]
[1764536512379,0.002,3031.6,3031.3,6.5978293]
[1764536517481,0.48,3031.6,3031.3,6.5978293]
[1764536518680,0.002,3031.6,3031.3,6.5978293]
[1764536518855,0.002,3031.6,3031.3,0.72559411]
[1764536519178,0.002,3031.6,3031.2,6.59804696]
[1764536519381,0.002,3031.6,3031.1,0.001]
[1764536519382,0.47,3031.3,3031.1,0.001]
[1764536519580,0.435,3031.2,3031.1,0.209]
[1764536520082,0.913,3031.2,3031.1,0.209]
[1764536521582,1.40485569,3031.2,3031.1,0.209]
[1764536521984,4.9184423,3031.2,3031.1,0.001]
[1764536522786,5.05059921,3031.2,3031.1,0.001]
[1764536523483,5.93225496,3031.2,3031.1,0.001]
[1764536523681,6.14025496,3031.2,3031.1,0.001]
[1764536523881,7.54570011,3031.2,3031.1,0.001]
[1764536524367,6.66404436,3031.2,3031.1,0.001]
[1764536524566,7.54570011,3031.2,3031.1,0.001]
[1764536525193,6.66404436,3031.2,3031.1,0.001]
[1764536525399,7.38963847,3031.2,3031.1,0.001]
[1764536525697,8.27129422,3031.2,3031.1,0.001]
[1764536526282,8.26976823,3031.2,3031.1,0.001]
[1764536526792,8.27176823,3031.2,3031.1,0.001]
[1764536526988,7.39163847,3031.2,3031.1,0.001]
[1764536528279,8.27090973,3031.2,3031.1,0.001]
[1764536528673,7.39163847,3031.2,3031.1,0.001]
[1764536529372,8.27055617,3031.2,3031.1,0.001]
[1764536533401,7.39163847,3031.2,3031.1,0.001]
[1764536543209,8.27055617,3031.2,3031.1,0.001]
[1764536544114,11.74555617,3031.2,3031.1,0.001]
[1764536544288,8.27055617,3031.2,3031.1,0.001]
[1764536545397,7.39163847,3031.2,3031.1,0.001]
[1764536547115,8.56564077,3031.2,3031.1,0.001]
[1764536548097,7.39163847,3031.2,3031.1,0.001]
[1764536549199,9.15264193,3031.2,3031.1,0.001]
[1764536550533,12.59601239,3031.2,3031.1,0.001]
[1764536551330,10.83500893,3031.2,3031.1,0.001]
[1764536551833,14.27837939,3031.2,3031.1,0.001]
[1764536553821,10.83500893,3031.2,3031.1,0.001]
[1764536568243,14.27837939,3031.2,3031.1,0.001]
[1764536568451,0.72559411,3031.1,3031.0,0.001]
[1764536568746,0.72559411,3031.1,3030.8,0.001]
[1764536568747,0.847304,3031.0,3030.8,0.001]
[1764536569051,8.30891152,3030.9,3030.8,0.001]
[1764536569235,12.07976154,3030.9,3030.8,0.001]
[1764536569437,11.43311069,3030.9,3030.8,0.001]
[1764536569634,11.56531215,3030.9,3030.8,0.001]
[1764536570213,13.92563628,3030.9,3030.8,0.001]
[1764536570418,11.56531215,3030.9,3030.8,0.001]
[1764536570744,13.92563628,3030.9,3030.8,0.001]
[1764536571446,11.56531215,3030.9,3030.8,0.001]
[1764536576430,11.56731215,3030.9,3030.8,0.001]
[1764536580460,0.405504,3030.8,3030.7,0.001]
[1764536580650,5.07749014,3030.8,3030.7,0.001]
[1764536581149,8.50915966,3030.8,3030.7,0.001]
[1764536585553,0.405504,3030.4,3030.1,0.001]
[1764536585731,9.36695785,3030.3,3030.1,0.001]
[1764536585937,10.53968605,3030.3,3030.1,0.001]
[1764536586146,11.16741373,3030.3,3030.1,0.001]
[1764536588428,6.62794265,3030.3,3030.2,0.4886]
[1764536588758,6.04013762,3030.3,3030.2,0.8767]
[1764536589128,9.48350808,3030.3,3030.2,0.8767]
[1764536589452,8.30761437,3030.3,3030.2,0.8767]
[1764536590031,5.0206787,3030.3,3030.2,0.8767]
[1764536590238,5.74627281,3030.3,3030.2,0.8767]
[1764536591259,0.8386465,3030.3,3030.2,0.8767]
[1764536591468,3.43223098,3030.3,3030.2,0.4886]
[1764536591642,4.1386498,3030.3,3030.2,0.4886]
[1764536591842,7.58202026,3030.3,3030.2,0.4886]
[1764536592458,4.1386498,3030.3,3030.2,0.8767]
[1764536593452,4.1386498,3030.3,3030.2,0.4886]
[1764536595032,7.58202026,3030.3,3030.2,0.001]
[1764536595457,8.46404916,3030.3,3030.2,0.001]
[1764536596868,9.85825584,3030.3,3030.2,0.001]
[1764536597037,10.35375584,3030.3,3030.2,0.001]
[1764536597436,9.47172694,3030.3,3030.2,0.001]
[1764536597741,10.19732105,3030.3,3030.2,0.001]
[1764536597938,11.37321476,3030.3,3030.2,0.001]
[1764536598139,10.19732105,3030.3,3030.2,0.001]
[1764536598367,9.70182105,3030.3,3030.2,0.001]
[1764536598543,13.64069151,3030.3,3030.2,0.001]
[1764536598871,11.96101979,3030.3,3030.2,0.001]
[1764536601082,10.19732105,3030.3,3030.2,0.001]
[1764536601374,11.96420679,3030.3,3030.2,0.001]
[1764536603456,11.46870679,3030.3,3030.2,0.001]
[1764536603994,11.92660679,3030.3,3030.2,0.001]
[1764536607176,15.36997725,3030.3,3030.2,0.001]
[1764536607478,13.60309151,3030.3,3030.2,0.001]
[1764536607680,14.00859551,3030.3,3030.2,0.001]
[1764536607879,1.13109811,3030.2,3030.1,0.001]
[1764536608062,4.93910922,3030.2,3030.1,0.001]
[1764536608583,5.07133472,3030.2,3030.0,0.001]
[1764536608783,5.07133472,3030.2,3029.9,0.001]
[1764536608784,4.57446857,3030.0,3029.9,0.001]
[1764536608960,5.75138739,3030.0,3029.9,0.001]
[1764536609280,9.50781742,3030.0,3029.9,0.001]
[1764536609480,11.28121063,3030.0,3029.9,0.001]
[1764536609783,11.41345099,3030.0,3029.9,0.001]
[1764536610384,11.4168107,3030.0,3029.9,0.001]
[1764536615790,0.90809411,3029.9,3029.2,0.2681]
[1764536615991,0.88130687,3029.4,3029.2,0.2681]
[1764536616180,0.91441882,3029.3,3029.2,0.2681]
[1764536616585,1.18251882,3029.3,3029.2,0.5362]
[1764536617589,0.4761,3029.3,3029.2,0.5362]
[1764536618004,3.77719266,3029.3,3029.2,0.5362]
[1764536618206,4.48361148,3029.3,3029.2,0.5362]
[1764536620769,4.48361148,3029.3,3029.2,0.2681]
[1764536621789,4.48361148,3029.3,3029.2,0.5362]
[1764536623198,4.48361148,3029.3,3029.2,0.2681]
[1764536626995,4.48361148,3029.3,3029.2,0.5362]
[1764536628700,5.36491835,3029.3,3029.2,0.5362]
[1764536631317,5.36491835,3029.3,3029.1,0.0807]
[1764536631318,6.42157569,3029.3,3029.1,0.001]
[1764536631612,1.58772569,3029.2,3029.1,0.001]
[1764536632108,1.85682569,3029.2,3029.1,0.2691]
[1764536632302,0.97551882,3029.2,3029.1,0.5372]
[1764536633313,5.15802732,3029.2,3029.1,0.5372]
[1764536636315,4.27672045,3029.2,3029.1,0.5372]
[1764536636516,4.27707041,3029.2,3029.1,0.5372]
[1764536637908,5.45214624,3029.2,3029.1,0.2691]
[1764536640016,6.5245315,3029.2,3029.1,0.2691]
[1764536640216,7.4600315,3029.2,3029.1,0.001]
[1764536640727,7.0100315,3029.2,3029.1,0.001]
[1764536642014,7.01067612,3029.2,3029.1,0.001]
[1764536642330,6.52517612,3029.2,3029.1,0.2691]
[1764536642512,5.45279086,3029.2,3029.1,0.5372]
[1764536642711,5.18369086,3029.2,3029.1,0.5372]
[1764536642909,1.88248923,3029.2,3029.1,0.5372]
[1764536643108,4.00861503,3029.2,3029.1,0.5372]
[1764536643308,4.00861503,3029.2,3029.1,0.2691]
[1764536645334,4.00861503,3029.2,3029.1,0.5372]
[1764536647606,4.00861503,3029.2,3029.1,0.2691]
[1764536648025,4.00861503,3029.2,3029.1,0.5372]
[1764536650446,4.00861503,3029.2,3029.1,0.2691]
[1764536650810,4.49411503,3029.2,3029.1,0.001]
[1764536652439,4.00861503,3029.2,3029.1,0.2691]
[1764536652753,4.00861503,3029.2,3029.1,0.5372]
[1764536652963,4.00861503,3029.2,3029.1,0.2691]
[1764536654667,4.00861503,3029.2,3029.1,0.5372]
[1764536654969,4.89272865,3029.2,3029.1,0.5372]
[1764536655468,4.89272865,3029.2,3029.1,0.2691]
[1764536657852,4.00861503,3029.2,3029.1,0.001]
[1764536658624,4.00861503,3029.2,3029.1,0.2691]
[1764536659057,4.00861503,3029.2,3029.1,0.5372]
[1764536659221,4.00861503,3029.2,3029.1,0.2691]
[1764536660250,4.00861503,3029.2,3029.1,0.5372]
[1764536660251,0.7074134,3029.2,3029.1,0.5372]
[1764536661124,4.00861503,3029.2,3029.1,0.2691]
[1764536661324,4.00861503,3029.2,3029.1,0.5372]
[1764536661555,4.00861503,3029.2,3029.1,0.2691]
[1764536665283,4.01061503,3029.2,3029.1,0.2691]
[1764536669350,0.7094134,3029.2,3029.1,0.5372]
[1764536669546,0.002,3029.2,3029.1,0.5372]
[1764536670253,0.002,3029.2,3029.1,0.92126773]
[1764536670642,0.002,3029.2,3029.1,4.22257835]
[1764536672065,0.002,3029.2,3029.1,11.65346435]
[1764536672285,0.002,3029.2,3029.1,12.37905846]
[1764536672584,0.002,3029.2,3029.1,14.39103552]
[1764536674487,0.002,3029.2,3029.1,13.70348752]
[1764536675411,0.002,3029.2,3029.1,13.91148752]
[1764536676793,0.002,3029.2,3029.1,9.00539652]
[1764536678896,0.002,3029.2,3029.1,9.00539652]
[1764536684980,0.002,3029.2,3029.1,12.29951352]
[1764536696939,0.002,3029.2,3029.1,19.50791152]
[1764536698434,0.002,3029.2,3029.1,19.25841752]
[1764536700014,0.002,3029.2,3029.1,27.91185152]
[1764536700205,0.002,3029.2,3029.1,13.31374852]
[1764536700535,0.002,3029.2,3029.1,9.00539652]
[1764536700736,0.002,3029.2,3029.1,15.74509552]
[1764536701114,0.002,3029.2,3029.1,16.01319552]
[1764536701315,0.002,3029.2,3029.1,5.29357646]
[1764536701526,0.002,3029.2,3029.1,7.49790046]
[1764536701738,0.002,3029.2,3029.1,10.88439452]
[1764536701943,0.002,3029.2,3029.1,10.88725052]
[1764536702236,0.002,3029.2,3029.1,8.73729652]
[1764536707451,0.9758,3029.2,3029.1,0.72659411]
[1764536707651,0.9758,3029.2,3029.1,0.001]
[1764536710970,0.002,3029.2,3029.1,0.001]
[1764536711140,0.4795,3029.2,3029.1,0.001]
[1764536712654,0.002,3029.2,3029.1,0.001]
[1764536714381,0.4795,3029.2,3029.1,0.001]
[1764536715481,0.9758,3029.2,3029.1,0.001]
[1764536731113,0.002,3029.2,3029.1,1.03689584]
[1764536731300,0.002,3029.2,3029.1,0.0340131]
[1764536732260,0.002,3029.2,3029.1,3.60342372]
[1764536732633,0.4704,3029.2,3029.1,3.54332372]
[1764536733167,0.002,3029.2,3029.1,3.81142372]
[1764536733343,0.002,3029.2,3029.1,4.52290687]
[1764536738963,0.002,3029.2,3029.1,3.54332372]
[1764536738964,0.4704,3029.2,3029.1,3.54332372]
[1764536739136,0.9533,3029.2,3029.1,3.54332372]
[1764536746070,0.002,3029.2,3029.1,3.81142372]
[1764536746242,0.002,3029.2,3029.1,3.54332372]
[1764536746563,0.4704,3029.2,3029.1,3.54332372]
[1764536746950,0.9533,3029.2,3029.1,3.54332372]
[1764536748071,0.002,3029.2,3029.1,3.81142372]
[1764536748670,0.002,3029.2,3029.1,3.54332372]
[1764536749975,0.4704,3029.2,3029.1,3.54332372]
[1764536750353,0.9533,3029.2,3029.1,3.54332372]
[1764536754384,0.9533,3029.2,3029.1,0.2420131]
[1764536754570,0.9533,3029.2,3029.1,3.54332372]
[1764536755582,0.9533,3029.2,3029.1,0.0340131]
[1764536755891,0.9533,3029.2,3029.1,0.001]
[1764536764011,5.4613389,3029.2,3029.1,0.001]
[1764536764212,4.96468335,3029.2,3029.1,0.001]
[1764536765708,1.18058172,3029.2,3029.1,0.001]
[1764536765912,1.63308172,3029.2,3029.1,0.001]
[1764536766296,4.93428335,3029.2,3029.1,0.001]
[1764536766497,0.71218172,3029.2,3029.1,0.001]
[1764536766701,0.002,3029.2,3029.1,0.3225]
[1764536766881,0.002,3029.2,3029.1,0.60139322]
[1764536767085,0.002,3029.2,3029.1,1.00689722]
[1764536767290,0.002,3029.2,3029.1,1.73249133]
[1764536767578,0.002,3029.2,3029.1,5.5781279]
[1764536767803,0.002,3029.2,3029.1,5.58722016]
[1764536773716,0.002,3029.2,3029.1,5.71940153]
[1764536776626,0.002,3029.2,3029.1,29.777301]
[1764536776872,0.002,3029.2,3029.1,25.399036]
[1764536777618,0.002,3029.2,3029.1,9.543952]
[1764536777920,0.002,3029.2,3029.1,14.949962]
[1764536778101,0.002,3029.2,3029.1,14.667151]
[1764536778712,0.002,3029.2,3029.1,14.488315]
[1764536779897,0.002,3029.2,3029.1,15.436974]
[1764536780940,0.002,3029.2,3029.1,15.404082]
[1764536782132,0.002,3029.2,3029.1,15.256835]
[1764536783038,0.002,3029.2,3029.1,15.402966]
[1764536784042,0.002,3029.2,3029.1,15.391541]
[1764536785145,0.002,3029.2,3029.1,39.193631]
[1764536786043,0.002,3029.2,3029.1,39.543952]
[1764536789355,0.002,3029.2,3029.1,39.23514]
[1764536789854,0.002,3029.6,3029.5,24.92784074]
[1764536790063,0.002,3029.6,3029.5,37.25614581]
[1764536790276,0.002,3029.6,3029.5,29.52974581]
[1764536790565,0.002,3029.6,3029.5,29.66189268]
[1764536791059,0.002,3029.6,3029.5,11.24623141]
[1764536791264,0.002,3029.6,3029.5,38.75344734]
[1764536792143,0.002,3029.6,3029.5,8.75344734]
[1764536792350,0.002,3029.6,3029.5,38.75019184]
[1764536792952,0.002,3029.6,3029.5,19.64472684]
[1764536793268,0.002,3029.6,3029.5,19.91282684]
[1764536793457,0.002,3029.6,3029.5,23.53007064]
[1764536793833,0.002,3029.6,3029.5,22.53570464]
[1764536794356,0.002,3029.6,3029.5,26.38570464]
[1764536794555,0.002,3029.6,3029.5,26.40281164]
[1764536794754,0.002,3029.6,3029.5,26.09492864]
[1764536795433,0.002,3029.6,3029.5,25.91877864]
[1764536796460,0.002,3029.6,3029.5,26.11187864]
[1764536796864,0.002,3029.6,3029.5,26.03153364]
[1764536797060,0.002,3029.6,3029.5,25.76343364]
[1764536797562,0.002,3029.6,3029.5,14.69009351]
[1764536797972,0.9434,3029.6,3029.5,16.16351651]
[1764536798170,0.9434,3029.6,3029.5,14.65051651]
[1764536798339,0.002,3029.6,3029.5,14.65051651]
[1764536798670,0.481,3029.6,3029.5,14.65051651]
[1764536798828,0.9434,3029.6,3029.5,14.65051651]
[1764536801077,0.9434,3029.6,3029.5,11.51244964]
[1764536801374,0.9434,3029.6,3029.5,8.48997284]
[1764536801669,0.9434,3029.6,3029.5,4.23446884]
[1764536802165,0.9434,3029.6,3029.5,4.26747758]
[1764536808286,0.002,3029.6,3029.5,4.26747758]
[1764536808659,0.9434,3029.6,3029.5,4.26747758]
[1764536810885,0.002,3029.6,3029.5,4.26747758]
[1764536811689,0.9434,3029.6,3029.5,4.26747758]
[1764536813067,0.002,3029.6,3029.5,4.67298158]
[1764536813389,0.002,3029.6,3029.5,12.27519391]
[1764536813594,0.002,3029.6,3029.5,15.6840573]
[1764536818094,0.002,3029.6,3029.5,19.5340573]
[1764536818774,0.002,3029.6,3029.5,19.8021573]
[1764536819465,0.002,3029.6,3029.5,35.9212283]
[1764536819769,0.002,3029.6,3029.5,34.2703833]
[1764536819974,0.002,3029.6,3029.5,32.9679933]
[1764536820686,0.002,3029.6,3029.5,34.5464433]
[1764536820870,0.002,3029.6,3029.5,34.2629643]
[1764536821265,0.002,3029.6,3029.5,33.6904623]
[1764536821708,0.002,3029.6,3029.5,40.64015704]
[1764536821947,0.002,3029.6,3029.5,38.26881604]
[1764536822102,0.002,3029.6,3029.5,15.54683404]
[1764536822407,0.002,3029.6,3029.5,31.07693904]
[1764536822706,0.002,3029.6,3029.5,18.84242217]
[1764536823696,0.002,3029.6,3029.5,23.33412317]
[1764536823884,0.4577,3029.6,3029.5,15.3417013]
[1764536824409,0.002,3029.6,3029.5,11.69182917]
[1764536824571,0.002,3029.6,3029.5,25.0763923]
[1764536825069,0.002,3029.6,3029.5,25.3444923]
[1764536825568,0.002,3029.6,3029.5,21.02352017]
[1764536825788,0.002,3029.6,3029.5,20.93122117]
[1764536826188,0.002,3029.6,3029.5,21.19932117]
[1764536826813,0.002,3029.6,3029.5,21.90263417]
[1764536828914,0.002,3029.6,3029.5,21.90686517]
[1764536829528,0.002,3029.6,3029.5,22.17496517]
[1764536829729,0.002,3029.6,3029.5,21.90686517]
[1764536829930,0.002,3029.6,3029.5,25.38641817]
[1764536830122,0.002,3029.6,3029.5,24.66512117]
[1764536832031,0.002,3029.6,3029.5,25.17542617]
[1764536832409,0.002,3029.6,3029.5,23.30312317]
[1764536832609,0.002,3029.6,3029.5,23.57122317]
[1764536833010,0.002,3029.6,3029.5,32.86435617]
[1764536834040,0.002,3029.6,3029.5,10.12730617]
[1764536834244,0.002,3029.6,3029.5,32.84596317]
[1764536835139,0.002,3029.6,3029.5,10.12730617]
[1764536835443,0.002,3029.6,3029.5,32.85547917]
[1764536835649,0.002,3029.6,3029.5,25.46184617]
[1764536836340,0.002,3029.6,3029.5,27.33007717]
[1764536836905,0.002,3029.6,3029.5,26.71907717]
[1764536837136,0.002,3029.6,3029.5,24.97034317]
[1764536837910,0.002,3029.6,3029.5,24.57962617]
[1764536838241,0.4577,3029.6,3029.5,24.30353517]
[1764536838404,0.9427,3029.6,3029.5,13.0329783]
[1764536838828,0.9427,3029.6,3029.5,16.3835953]
[1764536839038,0.9427,3029.6,3029.5,7.15087473]
[1764536839204,0.9427,3029.6,3029.5,7.35887473]
[1764536839410,0.9427,3029.6,3029.5,8.48997284]
[1764536844841,0.9427,3029.6,3029.5,4.63997284]
[1764536845014,0.9427,3029.6,3029.5,4.67298158]
[1764536847112,0.9427,3029.6,3029.5,4.63997284]
[1764536847343,0.9427,3029.6,3029.5,4.67298158]
[1764536847739,0.9427,3029.6,3029.5,4.63997284]
[1764536847932,0.9427,3029.6,3029.5,4.67298158]
[1764536848517,0.9427,3029.6,3029.5,4.63997284]
[1764536850108,0.9427,3029.6,3029.5,4.67298158]
[1764536850534,0.9427,3029.6,3029.5,4.46498158]
[1764536850750,0.9427,3029.6,3029.5,4.23446884]
[1764536851114,0.9427,3029.6,3029.5,0.208]
[1764536851527,0.9427,3029.6,3029.5,3.50887473]
[1764536852018,0.9427,3029.6,3029.5,0.208]
[1764536853253,0.9427,3029.6,3029.5,0.24100874]
[1764536853416,0.9427,3029.6,3029.5,0.208]
[1764536861564,4.66799164,3029.6,3029.5,0.208]
[1764536861720,4.66799164,3029.6,3029.3,0.001]
[1764536861923,0.4804,3029.4,3029.3,0.001]
[1764536862325,0.9493,3029.4,3029.3,0.001]
[1764536862922,1.65646188,3029.4,3029.3,0.001]
[1764536863150,2.16225608,3029.4,3029.3,0.001]
[1764536864267,5.46323977,3029.4,3029.3,0.001]
[1764536869277,6.16965222,3029.4,3029.3,0.001]
[1764536869648,6.89524633,3029.4,3029.3,0.001]
[1764536874655,0.72559411,3029.3,3029.1,0.001]
[1764536874854,6.04192515,3029.2,3029.1,0.001]
[1764536875171,7.2413376,3029.2,3029.1,0.001]